[Event "Titled Tuesday Blitz June 20 Early 2023"]
[White "Kollars, Dmitrij"]
[Black "Shukhman, Anna"]
[WhiteFideId "12909572"]
[BlackFideId "54180058"]
[WhiteElo "2584"]
[BlackElo "2235"]
[Result "1-0"]
[Round "6"]
[TimeControl "180+2"]
[Date "2023.06.20"]
[WhiteClock "0:00:13"]
[BlackClock "0:00:04"]
[Board "33"]

1. Nf3 {[%clk 0:03:00]}  f5 {[%clk 0:02:58]} 2. d4 {[%clk 0:02:59]}  Nf6 {[%clk 0:02:58]} 3. c4 {[%clk 0:02:59]}  g6 {[%clk 0:02:59]} 4. e3 {[%clk 0:02:57]}  Bg7 {[%clk 0:02:59]} 5. Be2 {[%clk 0:02:57]}  O-O {[%clk 0:03:00]} 6. O-O {[%clk 0:02:58]}  d6 {[%clk 0:03:01]} 7. b4 {[%clk 0:02:58]}  c6 {[%clk 0:03:00]} 8. Nc3 {[%clk 0:02:55]}  Qe8 {[%clk 0:03:00]} 9. Qb3 {[%clk 0:02:55]}  e5 {[%clk 0:02:58]} 10. dxe5 {[%clk 0:02:54]}  dxe5 {[%clk 0:02:58]} 11. a4 {[%clk 0:02:55]}  Kh8 {[%clk 0:02:47]} 12. Ba3 {[%clk 0:02:54]}  a5 {[%clk 0:02:45]} 13. b5 {[%clk 0:02:47]}  Rf7 {[%clk 0:02:45]} 14. Rfd1 {[%clk 0:02:40]}  e4 {[%clk 0:02:43]} 15. Ng5 {[%clk 0:02:33]}  Rd7 {[%clk 0:02:42]} 16. Bd6 {[%clk 0:02:27]}  h6 {[%clk 0:02:40]} 17. Nh3 {[%clk 0:02:26]}  Qf7 {[%clk 0:02:33]} 18. Qa3 {[%clk 0:02:13]}  Ne8 {[%clk 0:02:28]} 19. Bc5 {[%clk 0:02:07]}  Rxd1+ {[%clk 0:02:25]} 20. Rxd1 {[%clk 0:02:08]}  Be6 {[%clk 0:02:23]} 21. Nf4 {[%clk 0:02:02]}  Nd7 {[%clk 0:02:21]} 22. Bd4 {[%clk 0:01:58]}  Bxd4 {[%clk 0:02:11]} 23. Rxd4 {[%clk 0:01:59]}  c5 {[%clk 0:02:08]} 24. Rd1 {[%clk 0:01:59]}  b6 {[%clk 0:01:55]} 25. h4 {[%clk 0:01:55]}  Ne5 {[%clk 0:01:51]} 26. Qa1 {[%clk 0:01:49]}  Kh7 {[%clk 0:01:42]} 27. Ncd5 {[%clk 0:01:46]}  Nd7 {[%clk 0:01:31]} 28. h5 {[%clk 0:01:20]}  g5 {[%clk 0:01:30]} 29. Ng6 {[%clk 0:01:20]}  Nef6 {[%clk 0:01:28]} 30. Nxf6+ {[%clk 0:01:06]}  Nxf6 {[%clk 0:01:27]} 31. Rd6 {[%clk 0:01:06]}  g4 {[%clk 0:01:04]} 32. Nf4 {[%clk 0:01:01]}  Re8 {[%clk 0:01:02]} 33. Rxb6 {[%clk 0:00:48]}  Nxh5 {[%clk 0:01:02]} 34. Nxh5 {[%clk 0:00:43]}  Qxh5 {[%clk 0:00:59]} 35. Rb7+ {[%clk 0:00:39]}  Bf7 {[%clk 0:00:59]} 36. Qf6 {[%clk 0:00:40]}  Kg8 {[%clk 0:00:49]} 37. b6 {[%clk 0:00:40]}  Rf8 {[%clk 0:00:41]} 38. Rc7 {[%clk 0:00:35]}  f4 {[%clk 0:00:37]} 39. Qxf4 {[%clk 0:00:26]}  Be6 {[%clk 0:00:28]} 40. Qg3 {[%clk 0:00:18]}  Qf5 {[%clk 0:00:24]} 41. b7 {[%clk 0:00:17]}  h5 {[%clk 0:00:24]} 42. Qf4 {[%clk 0:00:14]}  Qxf4 {[%clk 0:00:12]} 43. exf4 {[%clk 0:00:15]}  Rb8 {[%clk 0:00:10]} 44. g3 {[%clk 0:00:13]}  Kf8 {[%clk 0:00:10]} 45. Kf1 {[%clk 0:00:13]}  Ke8 {[%clk 0:00:10]} 46. Rh7 {[%clk 0:00:13]}  Kd8 {[%clk 0:00:10]} 47. Ke1 {[%clk 0:00:12]}  Bd7 {[%clk 0:00:09]} 48. Rxh5 {[%clk 0:00:11]}  Rxb7 {[%clk 0:00:09]} 49. Rxc5 {[%clk 0:00:11]}  Rb1+ {[%clk 0:00:09]} 50. Kd2 {[%clk 0:00:12]}  Rb2+ {[%clk 0:00:10]} 51. Ke3 {[%clk 0:00:12]}  Bxa4 {[%clk 0:00:08]} 52. Rxa5 {[%clk 0:00:12]}  Bc6 {[%clk 0:00:08]} 53. Bxg4 {[%clk 0:00:11]}  Rb3+ {[%clk 0:00:08]} 54. Kd4 {[%clk 0:00:11]}  Rb2 {[%clk 0:00:08]} 55. Be6 {[%clk 0:00:10]}  Rxf2 {[%clk 0:00:08]} 56. Bd5 {[%clk 0:00:11]}  Bxd5 {[%clk 0:00:08]} 57. Rxd5+ {[%clk 0:00:11]}  Ke7 {[%clk 0:00:06]} 58. Kxe4 {[%clk 0:00:11]}  Rc2 {[%clk 0:00:07]} 59. c5 {[%clk 0:00:11]}  Rc4+ {[%clk 0:00:07]} 60. Kf5 {[%clk 0:00:11]}  Rc3 {[%clk 0:00:07]} 61. g4 {[%clk 0:00:11]}  Rc2 {[%clk 0:00:07]} 62. g5 {[%clk 0:00:12]}  Rc3 {[%clk 0:00:08]} 63. g6 {[%clk 0:00:12]}  Rc2 {[%clk 0:00:08]} 64. Re5+ {[%clk 0:00:13]}  Kf8 {[%clk 0:00:08]} 65. Kf6 {[%clk 0:00:13]}  Rg2 {[%clk 0:00:06]} 66. c6 {[%clk 0:00:13]}  Rc2 {[%clk 0:00:04]} 67. g7+ {[%clk 0:00:13]} 1-0


[Site "https://www.chess.com"]

[Event "Titled Tuesday Blitz June 20 Early 2023"]
[White "Nagare Kaivalya Sandip"]
[Black "Bacrot, Etienne"]
[WhiteFideId "25957929"]
[BlackFideId "605506"]
[WhiteElo "2024"]
[BlackElo "2672"]
[Result "0-1"]
[Round "6"]
[TimeControl "180+2"]
[Date "2023.06.20"]
[WhiteClock "0:00:10"]
[BlackClock "0:00:41"]
[Board "37"]

1. e4 {[%clk 0:02:59]}  c5 {[%clk 0:02:59]} 2. Nf3 {[%clk 0:02:59]}  d6 {[%clk 0:02:59]} 3. d4 {[%clk 0:02:59]}  cxd4 {[%clk 0:03:00]} 4. Nxd4 {[%clk 0:03:00]}  Nf6 {[%clk 0:03:00]} 5. Nc3 {[%clk 0:03:01]}  Nc6 {[%clk 0:02:59]} 6. Bg5 {[%clk 0:03:01]}  e6 {[%clk 0:02:58]} 7. Qd2 {[%clk 0:03:01]}  Bd7 {[%clk 0:02:57]} 8. O-O-O {[%clk 0:03:01]}  a6 {[%clk 0:02:56]} 9. Kb1 {[%clk 0:02:59]}  Nxd4 {[%clk 0:02:54]} 10. Qxd4 {[%clk 0:02:59]}  Be7 {[%clk 0:02:54]} 11. f3 {[%clk 0:02:58]}  Qc7 {[%clk 0:02:52]} 12. Qd2 {[%clk 0:02:43]}  b5 {[%clk 0:02:48]} 13. Bd3 {[%clk 0:02:43]}  b4 {[%clk 0:02:40]} 14. Ne2 {[%clk 0:02:36]}  a5 {[%clk 0:02:40]} 15. h4 {[%clk 0:02:35]}  O-O {[%clk 0:02:39]} 16. g4 {[%clk 0:02:33]}  a4 {[%clk 0:02:38]} 17. h5 {[%clk 0:02:31]}  h6 {[%clk 0:02:01]} 18. Be3 {[%clk 0:02:26]}  d5 {[%clk 0:02:00]} 19. e5 {[%clk 0:02:24]}  Nh7 {[%clk 0:01:52]} 20. Bxh6 {[%clk 0:02:21]}  a3 {[%clk 0:01:01]} 21. b3 {[%clk 0:01:08]}  Qxe5 {[%clk 0:00:57]} 22. Nd4 {[%clk 0:01:08]}  gxh6 {[%clk 0:00:57]} 23. Qxh6 {[%clk 0:01:02]}  Qg7 {[%clk 0:00:57]} 24. Qd2 {[%clk 0:00:50]}  Bc5 {[%clk 0:00:55]} 25. Bxh7+ {[%clk 0:00:32]}  Kxh7 {[%clk 0:00:52]} 26. Qd3+ {[%clk 0:00:29]}  Kh8 {[%clk 0:00:51]} 27. h6 {[%clk 0:00:20]}  Qxd4 {[%clk 0:00:51]} 28. Qxd4+ {[%clk 0:00:18]}  Bxd4 {[%clk 0:00:52]} 29. Rxd4 {[%clk 0:00:19]}  Rab8 {[%clk 0:00:53]} 30. g5 {[%clk 0:00:19]}  Kh7 {[%clk 0:00:51]} 31. f4 {[%clk 0:00:18]}  Rfc8 {[%clk 0:00:49]} 32. f5 {[%clk 0:00:15]}  exf5 {[%clk 0:00:49]} 33. Rxd5 {[%clk 0:00:15]}  Be6 {[%clk 0:00:49]} 34. Rd6 {[%clk 0:00:15]}  Rd8 {[%clk 0:00:45]} 35. Ra6 {[%clk 0:00:14]}  Rg8 {[%clk 0:00:45]} 36. Rg1 {[%clk 0:00:10]}  f4 {[%clk 0:00:41]} 0-1


[Site "https://www.chess.com"]

[Event "Titled Tuesday Blitz June 20 Early 2023"]
[White "Maksimovic, Bojan"]
[Black "Jaracz, Pawel"]
[WhiteFideId "14408120"]
[BlackFideId "1102222"]
[WhiteElo "2457"]
[BlackElo "2454"]
[Result "0-1"]
[Round "6"]
[TimeControl "180+2"]
[Date "2023.06.20"]
[WhiteClock "0:00:00"]
[BlackClock "0:00:20"]
[Board "40"]

1. Nf3 {[%clk 0:03:00]}  d5 {[%clk 0:02:53]} 2. g3 {[%clk 0:03:01]}  Nd7 {[%clk 0:02:50]} 3. d4 {[%clk 0:02:57]}  Ngf6 {[%clk 0:02:48]} 4. Bg2 {[%clk 0:02:57]}  Nb6 {[%clk 0:02:47]} 5. O-O {[%clk 0:02:58]}  Bf5 {[%clk 0:02:47]} 6. b3 {[%clk 0:02:57]}  e6 {[%clk 0:02:47]} 7. Bb2 {[%clk 0:02:57]}  Be7 {[%clk 0:02:47]} 8. Nbd2 {[%clk 0:02:57]}  O-O {[%clk 0:02:48]} 9. c4 {[%clk 0:02:54]}  c6 {[%clk 0:02:47]} 10. Rc1 {[%clk 0:02:49]}  Ne4 {[%clk 0:02:47]} 11. e3 {[%clk 0:02:48]}  a5 {[%clk 0:02:43]} 12. a3 {[%clk 0:02:46]}  Bg4 {[%clk 0:02:38]} 13. Qc2 {[%clk 0:02:39]}  a4 {[%clk 0:02:32]} 14. c5 {[%clk 0:02:23]}  axb3 {[%clk 0:02:23]} 15. Qxb3 {[%clk 0:02:18]}  Bxf3 {[%clk 0:02:14]} 16. Nxf3 {[%clk 0:02:17]}  Nc4 {[%clk 0:02:15]} 17. Rxc4 {[%clk 0:02:09]}  dxc4 {[%clk 0:02:15]} 18. Qxc4 {[%clk 0:02:09]}  Qd5 {[%clk 0:02:13]} 19. Qc2 {[%clk 0:02:09]}  Nf6 {[%clk 0:01:51]} 20. Ne5 {[%clk 0:02:08]}  Qd8 {[%clk 0:01:51]} 21. Nc4 {[%clk 0:02:06]}  Ra6 {[%clk 0:01:48]} 22. a4 {[%clk 0:02:05]}  Nd5 {[%clk 0:01:47]} 23. a5 {[%clk 0:02:04]}  Nc7 {[%clk 0:01:41]} 24. Bc3 {[%clk 0:02:02]}  Nb5 {[%clk 0:01:41]} 25. Bd2 {[%clk 0:02:03]}  Bf6 {[%clk 0:01:35]} 26. Rb1 {[%clk 0:02:00]}  Qe7 {[%clk 0:01:35]} 27. f4 {[%clk 0:01:57]}  Rd8 {[%clk 0:01:33]} 28. h3 {[%clk 0:01:53]}  g6 {[%clk 0:01:26]} 29. Kh2 {[%clk 0:01:53]}  Bg7 {[%clk 0:01:26]} 30. Be1 {[%clk 0:01:51]}  h5 {[%clk 0:01:26]} 31. h4 {[%clk 0:01:37]}  Bf6 {[%clk 0:01:23]} 32. Bf1 {[%clk 0:01:36]}  Ra7 {[%clk 0:01:03]} 33. Bb4 {[%clk 0:01:22]}  Qd7 {[%clk 0:00:54]} 34. Nd2 {[%clk 0:01:19]}  Nc7 {[%clk 0:00:52]} 35. Ne4 {[%clk 0:01:17]}  Be7 {[%clk 0:00:51]} 36. Be1 {[%clk 0:01:14]}  Nd5 {[%clk 0:00:50]} 37. Rb3 {[%clk 0:01:14]}  Rda8 {[%clk 0:00:50]} 38. Qb2 {[%clk 0:01:14]}  Bd8 {[%clk 0:00:47]} 39. Bc4 {[%clk 0:01:04]}  Kf8 {[%clk 0:00:43]} 40. Nd6 {[%clk 0:00:57]}  b5 {[%clk 0:00:35]} 41. cxb6 {[%clk 0:00:36]}  Bxb6 {[%clk 0:00:32]} 42. Bxd5 {[%clk 0:00:15]}  Bxa5 {[%clk 0:00:31]} 43. Bxa5 {[%clk 0:00:06]}  exd5 {[%clk 0:00:29]} 44. Rb8+ {[%clk 0:00:06]}  Kg7 {[%clk 0:00:28]} 45. Ne8+ {[%clk 0:00:06]}  Kh6 {[%clk 0:00:27]} 46. Nf6 {[%clk 0:00:04]}  Qe6 {[%clk 0:00:22]} 47. Ng8+ {[%clk 0:00:01]}  Kg7 {[%clk 0:00:22]} 48. Rxa8 {[%clk 0:00:02]}  Rxa8 {[%clk 0:00:21]} 49. Qb7 {[%clk 0:00:01]}  Rxa5 {[%clk 0:00:21]} 50. Ne7 {[%clk 0:00:02]}  Ra2+ {[%clk 0:00:20]} 51. Kg1 {[%clk 0:00:00]}  Qxe3+ {[%clk 0:00:20]} 0-1


[Site "https://www.chess.com"]

[Event "Titled Tuesday Blitz June 20 Early 2023"]
[White "Kvaloy, Aksel Bu"]
[Black "Avinash Ramesh"]
[WhiteFideId "1528815"]
[BlackFideId "45018340"]
[WhiteElo "2318"]
[BlackElo "2300"]
[Result "1-0"]
[Round "6"]
[TimeControl "180+2"]
[Date "2023.06.20"]
[WhiteClock "0:00:06"]
[BlackClock "0:00:00"]
[Board "41"]

1. e4 {[%clk 0:03:00]}  e5 {[%clk 0:02:59]} 2. Nf3 {[%clk 0:02:58]}  Nc6 {[%clk 0:02:59]} 3. Nc3 {[%clk 0:02:57]}  Nf6 {[%clk 0:02:58]} 4. d4 {[%clk 0:02:57]}  exd4 {[%clk 0:02:56]} 5. Nxd4 {[%clk 0:02:58]}  Bc5 {[%clk 0:02:47]} 6. Nxc6 {[%clk 0:02:58]}  bxc6 {[%clk 0:02:46]} 7. Bd3 {[%clk 0:02:58]}  O-O {[%clk 0:02:46]} 8. O-O {[%clk 0:02:51]}  d6 {[%clk 0:02:45]} 9. Bg5 {[%clk 0:02:49]}  h6 {[%clk 0:02:42]} 10. Bh4 {[%clk 0:02:49]}  Re8 {[%clk 0:02:38]} 11. Kh1 {[%clk 0:02:49]}  d5 {[%clk 0:02:33]} 12. exd5 {[%clk 0:02:43]}  cxd5 {[%clk 0:02:29]} 13. Bxf6 {[%clk 0:02:23]}  Qxf6 {[%clk 0:02:26]} 14. Nxd5 {[%clk 0:02:23]}  Qc6 {[%clk 0:02:27]} 15. b4 {[%clk 0:01:54]}  Bb7 {[%clk 0:02:21]} 16. bxc5 {[%clk 0:01:40]}  Qxd5 {[%clk 0:02:19]} 17. Qg4 {[%clk 0:01:40]}  Qxc5 {[%clk 0:02:15]} 18. h4 {[%clk 0:01:38]}  Re6 {[%clk 0:02:09]} 19. Rab1 {[%clk 0:01:36]}  Bc6 {[%clk 0:02:06]} 20. Kg1 {[%clk 0:01:33]}  Rae8 {[%clk 0:02:01]} 21. Qg3 {[%clk 0:01:31]}  Bd5 {[%clk 0:01:45]} 22. Rb5 {[%clk 0:01:24]}  Qc6 {[%clk 0:01:44]} 23. Ra5 {[%clk 0:01:20]}  Be4 {[%clk 0:01:37]} 24. Ra6 {[%clk 0:00:59]}  Qc5 {[%clk 0:01:20]} 25. Rxe6 {[%clk 0:00:47]}  Rxe6 {[%clk 0:01:20]} 26. Re1 {[%clk 0:00:46]}  Qe7 {[%clk 0:00:56]} 27. Bxe4 {[%clk 0:00:19]}  Rxe4 {[%clk 0:00:56]} 28. Rxe4 {[%clk 0:00:19]}  Qxe4 {[%clk 0:00:57]} 29. Qc3 {[%clk 0:00:13]}  c6 {[%clk 0:00:48]} 30. g3 {[%clk 0:00:13]}  Qd5 {[%clk 0:00:46]} 31. Qa3 {[%clk 0:00:12]}  a5 {[%clk 0:00:46]} 32. c4 {[%clk 0:00:09]}  Qxc4 {[%clk 0:00:26]} 33. Qxa5 {[%clk 0:00:09]}  c5 {[%clk 0:00:26]} 34. a4 {[%clk 0:00:09]}  Qc1+ {[%clk 0:00:26]} 35. Kg2 {[%clk 0:00:09]}  c4 {[%clk 0:00:27]} 36. Qa8+ {[%clk 0:00:10]}  Kh7 {[%clk 0:00:27]} 37. a5 {[%clk 0:00:10]}  c3 {[%clk 0:00:28]} 38. a6 {[%clk 0:00:10]}  Qb1 {[%clk 0:00:19]} 39. a7 {[%clk 0:00:09]}  c2 {[%clk 0:00:20]} 40. Qe4+ {[%clk 0:00:09]}  g6 {[%clk 0:00:20]} 41. Qd5 {[%clk 0:00:06]}  Kg7 {[%clk 0:00:05]} 42. a8=Q {[%clk 0:00:05]}  c1=Q {[%clk 0:00:00]} 43. Qe5+ {[%clk 0:00:06]} 1-0


[Site "https://www.chess.com"]

[Event "Titled Tuesday Blitz June 20 Early 2023"]
[White "brm72"]
[Black "Seo, Jung Min"]
[BlackFideId "1734687"]
[WhiteElo "2563"]
[BlackElo "2468"]
[Result "0-1"]
[Round "6"]
[TimeControl "180+2"]
[Date "2023.06.20"]
[WhiteClock "0:00:01"]
[BlackClock "0:00:06"]
[Board "47"]

1. e4 {[%clk 0:03:00]}  e5 {[%clk 0:02:58]} 2. Nf3 {[%clk 0:03:00]}  Nc6 {[%clk 0:02:58]} 3. d4 {[%clk 0:03:00]}  exd4 {[%clk 0:02:58]} 4. Nxd4 {[%clk 0:03:01]}  Bb4+ {[%clk 0:02:55]} 5. c3 {[%clk 0:03:01]}  Bc5 {[%clk 0:02:55]} 6. Be3 {[%clk 0:02:57]}  Qf6 {[%clk 0:02:49]} 7. g3 {[%clk 0:02:56]}  Nge7 {[%clk 0:02:44]} 8. Bg2 {[%clk 0:02:56]}  O-O {[%clk 0:02:34]} 9. O-O {[%clk 0:02:55]}  Bb6 {[%clk 0:02:31]} 10. Na3 {[%clk 0:02:43]}  d6 {[%clk 0:02:29]} 11. Nc4 {[%clk 0:02:43]}  Qg6 {[%clk 0:02:07]} 12. Nxb6 {[%clk 0:02:32]}  axb6 {[%clk 0:02:06]} 13. Nb5 {[%clk 0:02:32]}  Be6 {[%clk 0:01:27]} 14. Nxc7 {[%clk 0:02:22]}  Rxa2 {[%clk 0:01:27]} 15. Nxe6 {[%clk 0:02:13]}  Qxe6 {[%clk 0:01:25]} 16. Rxa2 {[%clk 0:01:32]}  Qxa2 {[%clk 0:01:24]} 17. Qe2 {[%clk 0:01:22]}  Qa5 {[%clk 0:01:15]} 18. Rd1 {[%clk 0:01:14]}  Rd8 {[%clk 0:01:15]} 19. Qc4 {[%clk 0:01:09]}  b5 {[%clk 0:01:09]} 20. Qb3 {[%clk 0:01:03]}  h6 {[%clk 0:01:00]} 21. Bf1 {[%clk 0:00:56]}  b4 {[%clk 0:00:56]} 22. c4 {[%clk 0:00:50]}  Ng6 {[%clk 0:00:53]} 23. f4 {[%clk 0:00:45]}  Qc7 {[%clk 0:00:51]} 24. Rd5 {[%clk 0:00:39]}  Re8 {[%clk 0:00:47]} 25. Bg2 {[%clk 0:00:39]}  Nge7 {[%clk 0:00:45]} 26. Rb5 {[%clk 0:00:37]}  Ra8 {[%clk 0:00:38]} 27. h3 {[%clk 0:00:34]}  Ra1+ {[%clk 0:00:32]} 28. Kh2 {[%clk 0:00:34]}  Qd7 {[%clk 0:00:32]} 29. Bd2 {[%clk 0:00:33]}  Nd4 {[%clk 0:00:29]} 30. Qxb4 {[%clk 0:00:31]}  Nxb5 {[%clk 0:00:28]} 31. cxb5 {[%clk 0:00:32]}  d5 {[%clk 0:00:23]} 32. Qd4 {[%clk 0:00:22]}  Qxb5 {[%clk 0:00:19]} 33. Bc3 {[%clk 0:00:22]}  f6 {[%clk 0:00:16]} 34. exd5 {[%clk 0:00:23]}  Nf5 {[%clk 0:00:12]} 35. Qe4 {[%clk 0:00:20]}  Qc5 {[%clk 0:00:12]} 36. h4 {[%clk 0:00:12]}  Qg1+ {[%clk 0:00:11]} 37. Kh3 {[%clk 0:00:12]}  Ne3 {[%clk 0:00:12]} 38. Qe8+ {[%clk 0:00:11]}  Kh7 {[%clk 0:00:11]} 39. Qe4+ {[%clk 0:00:06]}  f5 {[%clk 0:00:11]} 40. Qf3 {[%clk 0:00:07]}  Qxg2+ {[%clk 0:00:10]} 41. Qxg2 {[%clk 0:00:08]}  Nxg2 {[%clk 0:00:10]} 42. Kxg2 {[%clk 0:00:08]}  Rd1 {[%clk 0:00:10]} 43. Kf3 {[%clk 0:00:07]}  Rxd5 {[%clk 0:00:09]} 44. g4 {[%clk 0:00:06]}  g6 {[%clk 0:00:08]} 45. Be5 {[%clk 0:00:05]}  fxg4+ {[%clk 0:00:07]} 46. Kxg4 {[%clk 0:00:06]}  Kg8 {[%clk 0:00:07]} 47. h5 {[%clk 0:00:06]}  Kf7 {[%clk 0:00:07]} 48. hxg6+ {[%clk 0:00:06]}  Kxg6 {[%clk 0:00:08]} 49. f5+ {[%clk 0:00:05]}  Kf7 {[%clk 0:00:09]} 50. Bc3 {[%clk 0:00:06]}  b5 {[%clk 0:00:08]} 51. Bh8 {[%clk 0:00:05]}  b4 {[%clk 0:00:07]} 52. Kf4 {[%clk 0:00:03]}  b3 {[%clk 0:00:07]} 53. Kg4 {[%clk 0:00:04]}  Rd2 {[%clk 0:00:06]} 54. Bc3 {[%clk 0:00:03]}  Rc2 {[%clk 0:00:06]} 55. Bd4 {[%clk 0:00:01]}  Rc4 {[%clk 0:00:06]} 0-1


[Site "https://www.chess.com"]

[Event "Titled Tuesday Blitz June 20 Early 2023"]
[White "De La Villa Garcia, Jesus Maria"]
[Black "Fernandez Guillen, Ernesto J."]
[WhiteFideId "2200040"]
[BlackFideId "3512428"]
[WhiteElo "2562"]
[BlackElo "2434"]
[Result "0-1"]
[Round "6"]
[TimeControl "180+2"]
[Date "2023.06.20"]
[WhiteClock "0:00:08"]
[BlackClock "0:00:25"]
[Board "48"]

1. c4 {[%clk 0:03:00]}  e5 {[%clk 0:02:54]} 2. Nc3 {[%clk 0:03:00]}  Nc6 {[%clk 0:02:47]} 3. Nf3 {[%clk 0:03:00]}  f5 {[%clk 0:02:48]} 4. g3 {[%clk 0:03:00]}  Nf6 {[%clk 0:02:48]} 5. d4 {[%clk 0:02:59]}  e4 {[%clk 0:02:32]} 6. Nh4 {[%clk 0:02:59]}  d6 {[%clk 0:02:29]} 7. Bg5 {[%clk 0:02:58]}  Be7 {[%clk 0:02:27]} 8. Ng2 {[%clk 0:02:57]}  h6 {[%clk 0:02:26]} 9. Bxf6 {[%clk 0:02:56]}  Bxf6 {[%clk 0:02:27]} 10. e3 {[%clk 0:02:56]}  O-O {[%clk 0:02:26]} 11. Nf4 {[%clk 0:02:56]}  g5 {[%clk 0:02:26]} 12. Nfd5 {[%clk 0:02:55]}  Bg7 {[%clk 0:02:26]} 13. Bg2 {[%clk 0:02:55]}  Ne7 {[%clk 0:02:25]} 14. Nxe7+ {[%clk 0:02:54]}  Qxe7 {[%clk 0:02:26]} 15. O-O {[%clk 0:02:54]}  c6 {[%clk 0:02:26]} 16. b4 {[%clk 0:02:54]}  g4 {[%clk 0:02:25]} 17. b5 {[%clk 0:02:52]}  h5 {[%clk 0:02:25]} 18. a4 {[%clk 0:02:50]}  h4 {[%clk 0:02:25]} 19. Qb3 {[%clk 0:02:50]}  hxg3 {[%clk 0:02:25]} 20. hxg3 {[%clk 0:02:50]}  Rf7 {[%clk 0:02:24]} 21. Rfb1 {[%clk 0:02:50]}  c5 {[%clk 0:01:59]} 22. Nd5 {[%clk 0:02:45]}  Qg5 {[%clk 0:01:59]} 23. Rd1 {[%clk 0:02:38]}  cxd4 {[%clk 0:02:00]} 24. exd4 {[%clk 0:02:39]}  Bd7 {[%clk 0:01:51]} 25. Rac1 {[%clk 0:02:38]}  Re8 {[%clk 0:01:51]} 26. Nf4 {[%clk 0:02:30]}  Bh6 {[%clk 0:01:47]} 27. c5 {[%clk 0:02:24]}  Qe7 {[%clk 0:01:39]} 28. Nd5 {[%clk 0:02:15]}  Qe6 {[%clk 0:01:34]} 29. Re1 {[%clk 0:02:12]}  Bxc1 {[%clk 0:01:25]} 30. Rxc1 {[%clk 0:02:12]}  Bc6 {[%clk 0:01:19]} 31. bxc6 {[%clk 0:02:01]}  bxc6 {[%clk 0:01:20]} 32. Bf1 {[%clk 0:01:46]}  cxd5 {[%clk 0:01:20]} 33. c6 {[%clk 0:01:45]}  e3 {[%clk 0:01:03]} 34. Bg2 {[%clk 0:01:26]}  exf2+ {[%clk 0:01:02]} 35. Kxf2 {[%clk 0:01:26]}  Kg7 {[%clk 0:00:37]} 36. Bxd5 {[%clk 0:01:17]}  Qe2+ {[%clk 0:00:36]} 37. Kg1 {[%clk 0:01:17]}  Re3 {[%clk 0:00:36]} 38. Qd1 {[%clk 0:00:28]}  Rxg3+ {[%clk 0:00:35]} 39. Kh1 {[%clk 0:00:29]}  Rh3+ {[%clk 0:00:35]} 40. Kg1 {[%clk 0:00:29]}  Qe3+ {[%clk 0:00:35]} 41. Kf1 {[%clk 0:00:27]}  Qf4+ {[%clk 0:00:35]} 42. Kg1 {[%clk 0:00:27]}  g3 {[%clk 0:00:28]} 43. Qf3 {[%clk 0:00:15]}  Qxd4+ {[%clk 0:00:27]} 44. Kg2 {[%clk 0:00:08]}  Rh2+ {[%clk 0:00:25]} 45. Kxg3 {[%clk 0:00:08]}  Qh4# {[%clk 0:00:25]} 0-1


[Site "https://www.chess.com"]

[Event "Titled Tuesday Blitz June 20 Early 2023"]
[White "Atakhan, Abtin"]
[Black "Wang, Alexander J"]
[WhiteFideId "22502203"]
[BlackFideId "30955270"]
[WhiteElo "2008"]
[BlackElo "2311"]
[Result "1/2-1/2"]
[Round "6"]
[TimeControl "180+2"]
[Date "2023.06.20"]
[WhiteClock "0:00:04"]
[BlackClock "0:00:06"]
[Board "49"]

1. Nf3 {[%clk 0:02:31]}  d5 {[%clk 0:02:58]} 2. e3 {[%clk 0:02:29]}  c5 {[%clk 0:02:58]} 3. b3 {[%clk 0:02:28]}  Nf6 {[%clk 0:02:58]} 4. Bb2 {[%clk 0:02:28]}  e6 {[%clk 0:02:58]} 5. Bb5+ {[%clk 0:02:27]}  Bd7 {[%clk 0:02:58]} 6. Bxd7+ {[%clk 0:02:24]}  Qxd7 {[%clk 0:02:59]} 7. Ne5 {[%clk 0:02:22]}  Qd8 {[%clk 0:02:58]} 8. d3 {[%clk 0:02:21]}  Nbd7 {[%clk 0:02:51]} 9. f4 {[%clk 0:02:09]}  Bd6 {[%clk 0:02:37]} 10. Nd2 {[%clk 0:02:05]}  Qc7 {[%clk 0:02:32]} 11. Nxd7 {[%clk 0:02:01]}  Qxd7 {[%clk 0:02:31]} 12. Nf3 {[%clk 0:01:57]}  O-O-O {[%clk 0:02:25]} 13. Ne5 {[%clk 0:01:51]}  Qc7 {[%clk 0:02:17]} 14. Qf3 {[%clk 0:01:49]}  Rhg8 {[%clk 0:02:04]} 15. O-O-O {[%clk 0:01:46]}  Rdf8 {[%clk 0:01:52]} 16. Kb1 {[%clk 0:01:45]}  Nd7 {[%clk 0:01:45]} 17. Nxd7 {[%clk 0:01:43]}  Qxd7 {[%clk 0:01:45]} 18. e4 {[%clk 0:01:43]}  d4 {[%clk 0:01:43]} 19. c3 {[%clk 0:01:38]}  e5 {[%clk 0:01:24]} 20. cxd4 {[%clk 0:01:29]}  cxd4 {[%clk 0:01:12]} 21. Rc1+ {[%clk 0:01:26]}  Kb8 {[%clk 0:00:51]} 22. Rc4 {[%clk 0:01:25]}  f6 {[%clk 0:00:50]} 23. Rhc1 {[%clk 0:01:21]}  Rc8 {[%clk 0:00:49]} 24. fxe5 {[%clk 0:01:16]}  fxe5 {[%clk 0:00:41]} 25. Qh5 {[%clk 0:01:04]}  h6 {[%clk 0:00:34]} 26. Qg6 {[%clk 0:01:01]}  Qe7 {[%clk 0:00:26]} 27. h3 {[%clk 0:00:52]}  Qf6 {[%clk 0:00:25]} 28. Qxf6 {[%clk 0:00:32]}  gxf6 {[%clk 0:00:23]} 29. Rxc8+ {[%clk 0:00:33]}  Rxc8 {[%clk 0:00:23]} 30. Rf1 {[%clk 0:00:34]}  Be7 {[%clk 0:00:22]} 31. g4 {[%clk 0:00:25]}  Rh8 {[%clk 0:00:20]} 32. Rf5 {[%clk 0:00:24]}  Kc7 {[%clk 0:00:20]} 33. Bc1 {[%clk 0:00:19]}  Kd7 {[%clk 0:00:20]} 34. Kc2 {[%clk 0:00:16]}  Ke6 {[%clk 0:00:20]} 35. Bd2 {[%clk 0:00:16]}  Rc8+ {[%clk 0:00:20]} 36. Kd1 {[%clk 0:00:16]}  Rh8 {[%clk 0:00:20]} 37. Ke2 {[%clk 0:00:16]}  Rh7 {[%clk 0:00:21]} 38. Kf3 {[%clk 0:00:16]}  Rh8 {[%clk 0:00:21]} 39. Kg3 {[%clk 0:00:15]}  Rc8 {[%clk 0:00:21]} 40. Bxh6 {[%clk 0:00:14]}  Rc2 {[%clk 0:00:21]} 41. Rf2 {[%clk 0:00:14]}  Rc3 {[%clk 0:00:19]} 42. Rd2 {[%clk 0:00:13]}  Bb4 {[%clk 0:00:17]} 43. Kf3 {[%clk 0:00:11]}  Rc1 {[%clk 0:00:15]} 44. Re2 {[%clk 0:00:08]}  Rd1 {[%clk 0:00:11]} 45. Rc2 {[%clk 0:00:06]}  Rxd3+ {[%clk 0:00:11]} 46. Kg2 {[%clk 0:00:06]}  Bc3 {[%clk 0:00:11]} 47. h4 {[%clk 0:00:05]}  Kf7 {[%clk 0:00:11]} 48. h5 {[%clk 0:00:06]}  Rd1 {[%clk 0:00:10]} 49. Bc1 {[%clk 0:00:05]}  Kg7 {[%clk 0:00:09]} 50. a4 {[%clk 0:00:03]}  Rd3 {[%clk 0:00:06]} 51. Ba3 {[%clk 0:00:01]}  a6 {[%clk 0:00:06]} 52. Bb2 {[%clk 0:00:01]}  Rd2+ {[%clk 0:00:05]} 53. Rxd2 {[%clk 0:00:01]}  Bxd2 {[%clk 0:00:06]} 54. Kf2 {[%clk 0:00:01]}  Bc3 {[%clk 0:00:06]} 55. Bc1 {[%clk 0:00:02]}  b5 {[%clk 0:00:06]} 56. axb5 {[%clk 0:00:02]}  axb5 {[%clk 0:00:06]} 57. Ke2 {[%clk 0:00:03]}  b4 {[%clk 0:00:06]} 58. Kd3 {[%clk 0:00:03]}  Be1 {[%clk 0:00:06]} 59. Kc4 {[%clk 0:00:03]}  Bc3 {[%clk 0:00:06]} 60. Kd3 {[%clk 0:00:03]}  Kf7 {[%clk 0:00:05]} 61. Kc4 {[%clk 0:00:04]}  Kg7 {[%clk 0:00:06]} 62. Kd3 {[%clk 0:00:04]} 1/2-1/2


[Site "https://www.chess.com"]